Cogmind - Beta 10.2 @@@ ROGUE MODE // 2021.07.02 @ 22:17:13 // Winter2019/RPGLIKE Player: Kenzurith Result: Destroyed by G-47 Trooper with Particle Gun Performance ------------- Evolutions (1) 500 Regions Visited (6) 1200 Robots Destroyed (45) 225 Value Destroyed (997) 997 Prototype IDs (2) 40 Alien Tech Used (0) 0 Bonus (-86) -86 TOTAL SCORE: 2876 Bonus ------- Follower Combat Kills 28 Friendly Fire -114 Cogmind --------- Core Integrity 0/1300 Matter 300/300 Energy 16/100 System Corruption 0% Temperature Cool (9) Movement Treading (160) Location -8/Mines Parts ------- > --- POWER (1) -------- (None) > --- PROPULSION (3) --- Light Treads > --- UTILITY (6) ------ Coolant Injector Advanced Targeting Computer Core Analyzer Component Analysis Suite > --- WEAPON (2) ------- Shock Rifle Heavy Ion Cannon > --- INVENTORY (2) ---- Rocket Launcher Ripper Peak State ------------ > --- POWER ------------ Improved Ion Engine > --- PROPULSION ------- Light Treads > --- UTILITY ---------- Coolant Injector High-capacity Matter Pod Core Analyzer Matter Filter Medium Armor Plating Component Analysis Suite > --- WEAPON ----------- Advanced Beam Cannon Heavy Ion Cannon > --- INVENTORY -------- Rocket Launcher Ripper [Rating: 29] Favorites ----------- Power Improved Ion Engine Engine Improved Ion Engine Power Core Light Nuclear Core Propulsion Light Treads Treads Light Treads Leg Aluminum Leg Flight Unit Improved Flight Unit Utility Medium Armor Plating Device Coolant Injector Storage High-capacity Matter Pod Processor Core Analyzer Protection Medium Armor Plating Weapon Assault Rifle Energy Gun Shock Rifle Energy Cannon Advanced Beam Cannon Ballistic Gun Assault Rifle Slashing Weapon Ripper Build | -11 -10 -10 -9 -9 -9 -8 ------- Run | Scr Mat Min Mat Min Exi Min Slots Evolved 8 | 1 . . . 7 . . Power . | . . . . . . . Propulsion 2 | . . . . 2 . . Utility 5 | . . . . 5 . . Weapon 1 | 1 . . . . . . Parts Attached 28 | 3 2 1 9 8 3 2 Power 3 | . 1 1 1 . . . Engine 1 | . . . 1 . . . Core 2 | . 1 1 . . . . Reactor . | . . . . . . . Propulsion 5 | 1 . . 4 . . . Treads 4 | 1 . . 3 . . . Leg . | . . . . . . . Wheel . | . . . . . . . Hover . | . . . . . . . Flight 1 | . . . 1 . . . Utility 10 | . . . 3 5 1 1 Device 3 | . . . . 3 . . Storage 1 | . . . . . 1 . Processor 2 | . . . . 1 . 1 Hackware . | . . . . . . . Protection 4 | . . . 3 1 . . Artifact . | . . . . . . . Weapon 10 | 2 1 . 1 3 2 1 Energy Gun 2 | 1 . . . . . 1 Energy Cannon 5 | . . . 1 3 1 . Ballistic Gun 2 | 1 1 . . . . . Ballistic Cannon . | . . . . . . . Launcher . | . . . . . . . Special Weapon . | . . . . . . . Impact Weapon . | . . . . . . . Slashing Weapon 1 | . . . . . 1 . Piercing Weapon . | . . . . . . . Special Melee Weapon . | . . . . . . . Unidentified Prototypes 2 | . . . 2 . . . Parts Lost 4 | . . . . . 1 3 Power 1 | . . . . . . 1 Propulsion . | . . . . . . . Utility 2 | . . . . . 1 1 Weapon 1 | . . . . . . 1 Highest Loss Streak 2 | . . . . . 1 2 Average Slot Usage (%) 82 | . 80 80 96 82 75 62 Engine 7 | . 7 . 5 12 8 6 Core 7 | . 12 20 14 . . . Treads 14 | . 20 20 20 12 8 8 Device 10 | . . . . 16 25 21 Processor 3 | . . . . 5 8 9 Protection 7 | . . . 16 11 4 . Energy Cannon 9 | . . . 4 17 16 12 Ballistic Gun 19 | . 39 40 35 6 . . Naked Turns . | . . . . . . . Heaviest Build 34 | 9 9 9 20 32 34 23 Greatest Support 20 | 20 20 20 20 20 20 20 Greatest Overweight (x) 1 | . . . 1 1 1 1 Average Overweight (x) . | . . . . . 1 . Largest Inventory Capacity 2 | 1 1 1 1 2 2 2 Average Capacity 1 | . 1 1 1 1 2 2 Most Carried 2 | 1 1 1 1 2 2 2 Average Carried 1 | . . 1 . 1 2 2 Final Capacity 2 | 1 1 1 1 2 2 2 Final Carried 2 | 1 1 1 1 2 2 2 Class Distribution -------------------- 100% | Mutant Dominant Class ---------------- Mutant | -10/Materials Mutant | -10/Mines Mutant | -9/Materials Mutant | -9/Mines Mutant | -9/Exiles Mutant | -8/Mines Resources | -11 -10 -10 -9 -9 -9 -8 ----------- Run | Scr Mat Min Mat Min Exi Min Matter Collected 954 | 230 104 148 242 210 . 20 Remotely . | . . . . . . . Salvage Created 1404 | . 248 102 275 690 43 46 Parts 92 | . 15 15 25 27 . 10 Haulers Intercepted . | . . . . . . . Recyclers Shooed . | . . . . . . . Parts Field Recycled . | . . . . . . . Retrieved Matter . | . . . . . . . Parts Self-Destructed . | . . . . . . . Prevented . | . . . . . . . Kills | -11 -10 -10 -9 -9 -9 -8 ------- Run | Scr Mat Min Mat Min Exi Min Combat Hostiles Destroyed 34 | . 5 8 7 9 . 5 Guns 23 | . 5 8 6 3 . 1 Cannons 11 | . . . 1 6 . 4 Classes Destroyed 10 | . 2 1 3 3 1 . Worker 2 | . . . . 2 . . Builder 1 | . . . 1 . . . Recycler 7 | . 1 . . 6 . . Turret 1 | . . . . . 1 . Watcher 1 | . . . 1 . . . Swarmer 14 | . . 6 4 . . 4 Grunt 14 | . 5 2 . 6 . 1 Brawler 2 | . . . . 2 . . Duelist 1 | . . . . 1 . . Sentry 3 | . . . 3 . . . Best Kill Streak 6 | . 2 6 3 3 1 4 Combat Bots Only 6 | . 2 6 3 2 . 4 Max Kills in Single Turn 2 | . 1 2 1 2 1 1 Gunslinging 1 | . . 1 . . . . Exploded . | . . . . . . . Melee . | . . . . . . . Uniques/NPCs Destroyed . | . . . . . . . Combat | -11 -10 -10 -9 -9 -9 -8 -------- Run | Scr Mat Min Mat Min Exi Min Damage Taken 3462 | . 133 469 560 588 1294 418 Core 2677 | . 109 383 402 442 1001 340 Absorbed by Shields . | . . . . . . . Redirected to Core 2011 | . 76 273 270 308 835 249 Core Remaining (%) 92 | 100 . 84 . . . . Volleys Fired 132 | . 15 22 33 42 2 18 Largest 2 | . 2 2 2 2 2 2 Hottest 145 | . 40 40 88 145 133 133 Shots Fired 249 | . 30 44 66 82 4 23 Gun 171 | . 30 44 65 29 . 3 Cannon 78 | . . . 1 53 4 20 Launcher . | . . . . . . . Special . | . . . . . . . Kinetic 168 | . 30 44 65 29 . . Thermal 78 | . . . 1 53 4 20 Explosive . | . . . . . . . Electromagnetic 3 | . . . . . . 3 Robot Hit Streak 14 | . 7 8 9 14 3 8 Robot Miss Streak 5 | . 3 2 5 2 1 2 Penetration Max . | . . . . . . . Secondary Targets 4 | . . 3 1 . . . Max Gunslinging Chain 1 | . . 1 1 . . . Shots Hit Robots 153 | . 20 29 36 49 4 15 Core Hits 66 | . 12 12 11 24 1 6 Critical Hits 6 | . . 1 1 3 1 . Critical Kills 2 | . . . . 1 1 . Critical Parts Destroyed 4 | . . 1 1 2 . . Melee Attacks 1 | . . . . . 1 . Impact . | . . . . . . . Slashing 1 | . . . . . 1 . Piercing . | . . . . . . . Sneak Attacks . | . . . . . . . Combat Hostiles . | . . . . . . . Follow-up Attacks . | . . . . . . . Damage Inflicted 2518 | . 266 325 446 893 161 427 Guns 1303 | . 266 325 426 231 . 55 Cannons 1101 | . . . 20 662 47 372 Explosions . | . . . . . . . Melee 114 | . . . . . 114 . Ramming . | . . . . . . . Kinetic 1248 | . 266 325 426 231 . . Thermal 1101 | . . . 20 662 47 372 Explosive . | . . . . . . . Electromagnetic 55 | . . . . . . 55 Impact . | . . . . . . . Slashing 114 | . . . . . 114 . Piercing . | . . . . . . . Highest Corruption . | . . . . . . . Average Corruption . | . . . . . . . Corruption Purged . | . . . . . . . Overload Shots . | . . . . . . . Overflow Damage 12 | . . . . . . 12 Projectiles 12 | . . . . . . 12 Explosions . | . . . . . . . Melee . | . . . . . . . Knockbacks . | . . . . . . . Impact . | . . . . . . . Kinetic . | . . . . . . . Secondary . | . . . . . . . Self-Inflicted Damage . | . . . . . . . Shots . | . . . . . . . Rammed . | . . . . . . . Targets Rammed . | . . . . . . . Kicked . | . . . . . . . Crushed . | . . . . . . . Highest Temperature 378 | . 1 4 39 378 24 24 Average Temperature 78 | . 1 3 9 110 14 14 Received Heat Transfer 836 | . 72 96 72 150 320 126 Effects 1 | . . . . 1 . . Energy Bleed 1 | . . . . 1 . . Siege Activations . | . . . . . . . Robots Corrupted . | . . . . . . . Combat Hostiles . | . . . . . . . Parts Fried . | . . . . . . . Impact Corruptions . | . . . . . . . Robots Melted . | . . . . . . . Combat Hostiles . | . . . . . . . Parts Melted 1 | . . . . 1 . . Heat Transferred 1702 | . . . 37 1073 74 518 Parts Sabotaged . | . . . . . . . Parts Stolen . | . . . . . . . Parts Stripped . | . . . . . . . Power Chain Reactions . | . . . . . . . Missiles Intercepted . | . . . . . . . Alert | -11 -10 -10 -9 -9 -9 -8 ------- Run | Scr Mat Min Mat Min Exi Min Peak Influence 321 | . 140 259 184 321 . 99 Initial 54 | . . 54 22 36 . . Average 99 | . 59 150 102 98 . 34 Maximum Alert Level 1 | . . 1 1 1 . . Low Security (%) 86 | 100 100 49 99 91 . 100 Level 1 13 | . . 50 . 8 . . Level 2 . | . . . . . . . Level 3 . | . . . . . . . Level 4 . | . . . . . . . Level 5 . | . . . . . . . High Security . | . . . . . . . Max Security . | . . . . . . . Squads Dispatched 2 | . 1 . . 1 . . Investigation 1 | . . . . 1 . . Extermination . | . . . . . . . Reinforcement 1 | . 1 . . . . . Assault . | . . . . . . . Garrison . | . . . . . . . Intercept . | . . . . . . . Construction Impeded . | . . . . . . . Haulers Reinforced . | . . . . . . . Stealth | -11 -10 -10 -9 -9 -9 -8 --------- Run | Scr Mat Min Mat Min Exi Min Distress Signals 2 | . 1 . 1 . . . Communications Jammed . | . . . . . . . Distress Signals . | . . . . . . . Times Spotted 67 | . 8 8 16 17 10 8 Peak Tracking Total 11 | . 4 6 4 5 11 4 Tactical Retreats 5 | . . . 1 2 1 1 Traps | -11 -10 -10 -9 -9 -9 -8 ------- Run | Scr Mat Min Mat Min Exi Min Traps Triggered . | . . . . . . . Indirectly . | . . . . . . . Trap Hack Attempts . | . . . . . . . Triggered . | . . . . . . . Disarmed . | . . . . . . . Reprogrammed . | . . . . . . . Reused . | . . . . . . . Traps Extracted . | . . . . . . . Installed . | . . . . . . . Triggered . | . . . . . . . Machines | -11 -10 -10 -9 -9 -9 -8 ---------- Run | Scr Mat Min Mat Min Exi Min Machines Disabled 3 | . . . . 1 2 . Max in Single Turn 1 | . . . . 1 1 . Machines Sabotaged . | . . . . . . . Garrisons Compromised . | . . . . . . . Overloaded Fab Kills . | . . . . . . . Fab Network Shutdowns . | . . . . . . . Hacking | -11 -10 -10 -9 -9 -9 -8 --------- Run | Scr Mat Min Mat Min Exi Min Machines Accessed 5 | . 1 . 1 2 1 . Terminals 3 | . 1 . 1 1 . . Fabricators . | . . . . . . . Repair Stations . | . . . . . . . Recycling Units . | . . . . . . . Scanalyzers . | . . . . . . . Garrison Access . | . . . . . . . Total Hacks 10 | . 1 . 3 5 1 . Successful 7 | . . . 1 5 1 . Failed 3 | . 1 . 2 . . . Catastrophic . | . . . . . . . Database Lockouts . | . . . . . . . Manual 1 | . 1 . . . . . Terminals 8 | . 1 . 3 4 . . Fabricators . | . . . . . . . Repair Stations . | . . . . . . . Recycling Units . | . . . . . . . Scanalyzers . | . . . . . . . Garrison Access . | . . . . . . . Terminal Hacks 7 | . . . 1 5 1 . Record 4 | . . . . 3 1 . Robot Analysis 1 | . . . 1 . . . Open Door 1 | . . . . 1 . . Zone Layout 1 | . . . . 1 . . Fabricator Hacks . | . . . . . . . Repair Station Hacks . | . . . . . . . Recycling Unit Hacks . | . . . . . . . Scanalyzer . | . . . . . . . Garrison Access Hacks . | . . . . . . . Unauthorized Hacks . | . . . . . . . Terminals . | . . . . . . . Fabricators . | . . . . . . . Repair Stations . | . . . . . . . Recycling Units . | . . . . . . . Scanalyzers . | . . . . . . . Garrison Access . | . . . . . . . Data Cores Recovered . | . . . . . . . Used . | . . . . . . . Hacking Detections 2 | . 1 . 1 . . . Full Trace Events . | . . . . . . . Feedback Events . | . . . . . . . Feedback Blocked . | . . . . . . . Robot Schematics Acquired . | . . . . . . . Robots Built . | . . . . . . . Matter . | . . . . . . . Time . | . . . . . . . Total Robot Build Rating . | . . . . . . . Part Schematics Acquired . | . . . . . . . Parts Built . | . . . . . . . Matter . | . . . . . . . Time . | . . . . . . . Total Part Build Rating . | . . . . . . . Parts Repaired . | . . . . . . . Time . | . . . . . . . Parts Recycled . | . . . . . . . Recycled Matter . | . . . . . . . Retrieved Matter . | . . . . . . . Retrieved Components . | . . . . . . . Parts Scanalyzed . | . . . . . . . Part Schematics Acquired . | . . . . . . . Parts Damaged . | . . . . . . . Bothacking | -11 -10 -10 -9 -9 -9 -8 ------------ Run | Scr Mat Min Mat Min Exi Min Used RIF Installer . | . . . . . . . Robots Hacked . | . . . . . . . Non-combat . | . . . . . . . Combat . | . . . . . . . Robot Hacks Applied . | . . . . . . . Relay Couplers Released . | . . . . . . . Robots Rewired . | . . . . . . . Allies Hacked . | . . . . . . . Hacks Repelled . | . . . . . . . Allies | -11 -10 -10 -9 -9 -9 -8 -------- Run | Scr Mat Min Mat Min Exi Min Total Allies 5 | . . . . 5 . . Largest Group 5 | . . . . 5 5 . Highest-Rated Group 86 | . . . . 86 86 . Highest-Rated Ally 31 | . . . . 31 31 . Total Orders . | . . . . . . . Ally Attacks 29 | . . . . 8 21 . Total Damage 245 | . . . . 86 159 . Kills 4 | . . . . 4 . . Allies Corrupted . | . . . . . . . Allies Melted . | . . . . . . . Intel | -11 -10 -10 -9 -9 -9 -8 ------- Run | Scr Mat Min Mat Min Exi Min Robot Analysis Total 1 | . . . 1 . . . Derelict Logs Recovered 3 | . . 1 . 2 . . Drone Launches . | . . . . . . . Drone Recoveries . | . . . . . . . Exploration | -11 -10 -10 -9 -9 -9 -8 ------------- Run | Scr Mat Min Mat Min Exi Min Turns Passed 4085 | 27 379 745 661 1677 285 311 Spaces Moved 2067 | 15 200 405 316 833 152 146 Core . | . . . . . . . Treads 2059 | 8 200 405 315 833 152 146 Legs 7 | 7 . . . . . . Wheels . | . . . . . . . Hover . | . . . . . . . Flight 1 | . . . 1 . . . Fastest Speed 105 | 120 160 160 105 160 180 160 Average Speed 167 | 141 160 160 159 173 180 173 Slowest Speed 180 | 160 160 160 160 180 180 180 Overloaded Moves . | . . . . . . . Propulsion Burnouts . | . . . . . . . Robots Hopped . | . . . . . . . Cave-ins Triggered . | . . . . . . . Exploration Rate (%) 49 | 2 45 88 26 98 52 32 Regions Visited 6 Branch Regions 4 Pre-discovered Areas 1 | . . . . . 1 . Known Exits Taken . | . . . . . . . Unknown Exits Taken 6 | 1 1 1 1 1 1 . Scrap Searched 3 | . . 1 . 1 . 1 Spaces Dug 1 | . . . . 1 . . Terrain Destroyed 13 | . . . . 9 . 4 Melee . | . . . . . . . Projectile 13 | . . . . 9 . 4 AOE . | . . . . . . . Terrain Rammed . | . . . . . . . Walls Destroyed . | . . . . . . . Machines Disabled . | . . . . . . . Actions | -11 -10 -10 -9 -9 -9 -8 --------- Run | Scr Mat Min Mat Min Exi Min Total 2437 | 20 232 460 408 981 157 179 Wait 119 | . 3 16 29 61 . 10 Move 2061 | 14 199 404 315 832 151 146 Hop . | . . . . . . . Pick Up 9 | 1 3 1 . 4 . . Fast Attach 22 | 3 2 . 6 8 1 2 Attach . | . . . . . . . Detach 1 | . . . 1 . . . Swap 6 | . . 1 3 . 2 . Drop 23 | 2 5 2 8 6 . . Fire 132 | . 15 22 33 42 2 18 Melee 1 | . . . . . 1 . Ram . | . . . . . . . Kick . | . . . . . . . Crush . | . . . . . . . Escape Stasis . | . . . . . . . Rewire . | . . . . . . . Trap . | . . . . . . . Miscellaneous 63 | . 5 14 13 28 . 3 Route ------- -11/Scrapyard -10/Materials (discovered 2 exits: *Mat / [*Min]) -10/Mines (discovered 2 exits: *Mat x2) -9/Materials (discovered 3 exits: Mat x2 / *Min) -9/Mines (discovered 3 exits: *Mat x2 / *Exi) -9/Exiles (discovered 2 exits: [*Min x2]) -8/Mines (discovered 1 exit: *Mat) History --------- Turn | Location | Event 1 | -11/Scrapyard | Discovered new exit (range 3) 11 | -11/Scrapyard | Upgraded with Weapon slot (x1) 28 | -11/Scrapyard | Entered Materials 195 | -10/Materials | Discovered new exit (range 6) 304 | -10/Materials | Build established: Mutant 398 | -10/Materials | Discovered new exit (range 7) 407 | -10/Materials | Entered Mines 421 | -10/Mines | Reached level 2 429 | -10/Mines | Met a Derelict bent on vengeance 493 | -10/Mines | Learned 8 Materials zone layouts 1006 | -10/Mines | Discovered new exit (range 7) 1045 | -10/Mines | Discovered new exit (range 8) 1152 | -10/Mines | Entered Materials 1153 | -9/Materials | Identified exit to Materials 1154 | -9/Materials | Reached level 3 1318 | -9/Materials | Core integrity fell below 50% 1557 | -9/Materials | Discovered new exit (range 14) 1681 | -9/Materials | Reached level 4 1813 | -9/Materials | Entered Mines 1942 | -9/Mines | Learned Materials stockpile data 1979 | -9/Mines | Discovered exit to Materials (range 9) 2067 | -9/Mines | Reached level 5 2194 | -9/Mines | A weapon hastily lodged in a ceiling crevice suddenly fell to the ground 2250 | -9/Mines | Received a Rocket Launcher from a helpful Derelict 2275 | -9/Mines | Learned Materials garrison access intel 2370 | -9/Mines | Met a Derelict shopkeep closing up shop 2379 | -9/Mines | Upgraded with Propulsion slot (x2) 2379 | -9/Mines | Upgraded with Utility slot (x5) 2694 | -9/Mines | Assisted by bots powering up and referring to "LRC-V3" 3195 | -9/Mines | Discovered exit to Materials (range 9) 3454 | -9/Mines | Deemed a non-threat by the Exiles lab entrance 3456 | -9/Mines | Discovered new exit (range 5) 3490 | -9/Mines | Entered Exiles 3490 | -9/Exiles | Accompanied by 5 allies 3514 | -9/Exiles | Discovered new exit (range 15) 3520 | -9/Exiles | Led the pair of lost Derelicts to a safe place 3535 | -9/Exiles | Met 8R-AWN 3564 | -9/Exiles | Met EX-HEX 3664 | -9/Exiles | Attacked by the Exiles 3709 | -9/Exiles | Learned location of Zion (-6) 3743 | -9/Exiles | Core integrity fell below 20% 3761 | -9/Exiles | Discovered new exit (range 10) 3775 | -9/Exiles | Entered Mines 3777 | -8/Mines | Reached level 6 4008 | -8/Mines | Discovered exit to Materials (range 8) 4086 | -8/Mines | Destroyed by G-47 Trooper with Particle Gun Last Messages --------------- 03969_ Destroyed Flight Unit. 03971_ Upgraded: Core Integrity (+150) 03975_ S-10 Pest destroyed. 03977_ Destroyed Flight Unit. 03979_ S-10 Pest destroyed. 03985_ Used Protomatter to restore core integrity (+12, depleted) 03994_ Used Protomatter to restore core integrity (+15, depleted) 04008_ Searching scrap... 04008_ Found Shock Rifle. 04008_ Found Hvy. Flail. 04008_ Found Flail. 04008_ Found Adv. Targeting Computer. 04008_ Found 36 Matter. 04008_ EXIT=FOUND: MATERIALS 04011_ Acquired Shock Rifle. 04014_ Acquired Adv. Targeting Computer. 04019_ Acquired 18 matter. 04028_ Acquired 2 matter. 04039_ Imp. Ion Engine destroyed. 04044_ G-47 Trooper destroyed. Map ----- +----------------------------------------------------+ | | | | | | | | | | | ??????????????????????????????????????????? | | ??????????#######?????????????????????????? | | ?????????## ##????????????????????????? | | ?????????# #????????????????????????? | | ###??????# #????????????????????????? | | ##?????# #?????????????#######????? | | ##????# #??????????#?# #????? | | ##???# #?????????? ? #????? | | #???# #?????????# ##""" #????? | | ##?## ##?????????# ##""" #????? | | ### ##??????????# ##""" #????? | | ## #???????????# ##""" #????? | | ### ### ##??????????# ## = #????? | | ??## ##?## #??????????# ###*#####????? | | ???## ##???# #??????????# ###/#????????? | | #???# ####### ##??????????# ### ###??????? | | #???# ####???????????#=%[== %#??????? | | #???# #### #????####?????## #####/#??????? | | #???# #??# #???## ##????## #?###[#??????? | | ????# #??# #???# ##?#### #???#%#??????? | | ????# #??# #???# ###@ g #???#=#??????? | | ????# #??# #???# #???!* ??????? | | ????# #??# #??## ####??? ??????? | | ????# #??# #?## ####??????